bitfinex/quotes_BTCUSD_20250829
["timestamp","ask_amount","ask_price","bid_price","bid_amount"]
[1756462444419,1.32795709,110070.0,110060.0,0.15943702]
[1756462444625,1.32795709,110070.0,110060.0,0.15643702]
[1756462444835,0.2965884,110070.0,110060.0,0.00067702]
[1756462445038,1.48375709,110070.0,110060.0,0.00067702]
[1756462445238,1.32795709,110070.0,110060.0,0.00067702]
[1756462445656,1.48375709,110070.0,110060.0,0.00067702]
[1756462445874,1.48475709,110070.0,110060.0,0.00067702]
[1756462446090,1.48364709,110070.0,110060.0,0.18869608]
[1756462446310,1.48264709,110070.0,110060.0,0.18869608]
[1756462446511,0.02547953,110070.0,110060.0,0.18869608]
[1756462446716,0.02647953,110070.0,110060.0,0.18869608]
[1756462447601,0.02640287,110070.0,110060.0,0.18869608]
[1756462447804,1.23947411,110070.0,110060.0,0.18869608]
[1756462448600,1.05777156,110070.0,110060.0,0.18869608]
[1756462448800,0.02640287,110070.0,110060.0,0.18869608]
[1756462449030,1.05777156,110070.0,110060.0,0.18869608]
[1756462449516,1.23947411,110070.0,110060.0,0.18869608]
[1756462449940,1.05777156,110070.0,110060.0,0.18869608]
[1756462450415,1.23947411,110070.0,110060.0,0.18869608]
[1756462450866,0.20810542,110070.0,110060.0,0.18869608]
[1756462451083,1.23947411,110070.0,110060.0,0.18869608]
[1756462451767,0.02640287,110070.0,110060.0,0.18869608]
[1756462452846,0.02640287,110070.0,110060.0,0.21601908]
[1756462453275,0.02540287,110070.0,110060.0,0.21601908]
[1756462453481,0.02540287,110070.0,110060.0,0.21501908]
[1756462453680,0.02540287,110070.0,110060.0,0.21601908]
[1756462453909,0.02540287,110070.0,110060.0,0.3073154]
[1756462454123,0.02540287,110070.0,110060.0,0.37481908]
[1756462454598,0.02540287,110070.0,110060.0,0.21901908]
[1756462454814,0.02540287,110070.0,110060.0,0.37477908]
[1756462455641,1.05677156,110070.0,110060.0,0.21901908]
[1756462455880,1.32677043,110070.0,110060.0,0.37477908]
[1756462456094,1.32677043,110070.0,110060.0,0.21901908]
[1756462456298,1.32788043,110070.0,110060.0,0.34745608]
[1756462456743,1.32788043,110070.0,110060.0,0.00597702]
[1756462457006,1.32788043,110070.0,110060.0,0.34345608]
[1756462457495,1.32788043,110070.0,110060.0,0.34445608]
[1756462458177,0.29540174,110070.0,110060.0,0.34445608]
[1756462458374,1.23851505,110070.0,110060.0,0.34445608]
[1756462458857,1.23851642,110070.0,110060.0,0.34445608]
[1756462459104,0.02544518,110070.0,110060.0,0.34445608]
[1756462461397,0.03181883,110070.0,110060.0,0.34445608]
[1756462461602,0.21352138,110070.0,110060.0,0.34445608]
[1756462462016,0.21355302,110070.0,110060.0,0.37178008]
[1756462462391,1.06321916,110070.0,110060.0,0.37178008]
[1756462462793,1.06321916,110070.0,110060.0,0.34445608]
[1756462463160,1.08282149,110070.0,110060.0,0.34445608]
[1756462464228,0.0514528,110070.0,110060.0,0.34445608]
[1756462464636,1.08282149,110070.0,110060.0,0.34445608]
[1756462468152,1.26452404,110070.0,110060.0,0.34445608]
[1756462468524,1.26456551,110070.0,110060.0,0.34445608]
[1756462469132,1.08291916,110070.0,110060.0,0.34445608]
[1756462469349,1.26462171,110070.0,110060.0,0.34445608]
[1756462469591,0.05155047,110070.0,110060.0,0.34445608]
[1756462469818,0.05155047,110070.0,110060.0,0.39982756]
[1756462470206,0.05155047,110070.0,110060.0,0.42711156]
[1756462471786,0.05155047,110070.0,110060.0,0.37174008]
[1756462472202,0.05155047,110070.0,110060.0,0.21602008]
[1756462472601,0.05155047,110070.0,110060.0,0.37174008]
[1756462472807,1.08292374,110070.0,110060.0,0.37174008]
[1756462473593,1.06332141,110070.0,110060.0,0.21602008]
[1756462473796,1.08295693,110070.0,110060.0,0.37174008]
[1756462474238,1.06332141,110070.0,110060.0,0.37174008]
[1756462475162,1.06332141,110070.0,110060.0,0.21602008]
[1756462475363,1.06332141,110070.0,110060.0,0.37174008]
[1756462476158,0.03195272,110070.0,110060.0,0.37174008]
[1756462476376,1.06332141,110070.0,110060.0,0.37174008]
[1756462476802,0.03195272,110070.0,110060.0,0.37174008]
[1756462477011,1.06332141,110070.0,110060.0,0.37174008]
[1756462479817,1.04841228,110070.0,110060.0,0.37174008]
[1756462480029,1.06334487,110070.0,110060.0,0.37174008]
[1756462480713,1.24615742,110070.0,110060.0,0.37170008]
[1756462480914,1.24504742,110070.0,110060.0,0.37170008]
[1756462481318,1.06334487,110070.0,110060.0,0.37170008]
[1756462481984,1.06334487,110070.0,110060.0,0.21602008]
[1756462482170,1.06334487,110070.0,110060.0,0.37170008]
[1756462482380,0.21478873,110070.0,110060.0,0.36955008]
[1756462482584,1.24615742,110070.0,110060.0,0.21072008]
[1756462482814,1.24615742,110070.0,110060.0,0.36640008]
[1756462483347,1.24615742,110070.0,110060.0,0.36954008]
[1756462484079,1.24615742,110070.0,110060.0,0.37149008]
[1756462484281,1.24615742,110070.0,110060.0,0.36954008]
[1756462484500,1.33445374,110070.0,110060.0,0.36954008]
[1756462485094,1.24615742,110070.0,110060.0,0.36640008]
[1756462485307,1.26650104,110070.0,110060.0,0.15735702]
[1756462486371,1.26750104,110070.0,110060.0,0.00167702]
[1756462486812,1.26650104,110070.0,110060.0,0.00167702]
[1756462487223,1.24784742,110070.0,110060.0,0.00067702]
[1756462487426,1.33614374,110070.0,110060.0,0.00067702]
[1756462488102,1.33545374,110070.0,110060.0,0.00067702]
[1756462488680,1.49113374,110070.0,110060.0,0.00067702]
[1756462489464,1.49182374,110070.0,110060.0,0.00067702]
[1756462490062,1.49113374,110070.0,110060.0,0.00067702]
[1756462490653,1.49113047,110070.0,110060.0,0.00067702]
[1756462491853,1.49182047,110070.0,110060.0,0.00067702]
[1756462492053,1.51146475,110070.0,110060.0,0.00067702]
[1756462493307,1.35509475,110070.0,110060.0,0.00067702]
[1756462493529,1.49109047,110070.0,110060.0,0.00067702]
[1756462494350,1.26763666,110070.0,110060.0,0.00067702]
[1756462494548,1.42327666,110070.0,110060.0,0.00067702]
[1756462494953,1.42327666,110070.0,110060.0,0.00282702]
[1756462495157,1.40068415,110070.0,110060.0,0.18756608]
[1756462496172,1.40068415,110070.0,110060.0,0.00584702]
[1756462496578,1.40068415,110070.0,110060.0,0.00369702]
[1756462497348,1.40068415,110070.0,110060.0,0.18541608]
[1756462497791,1.48898047,110070.0,110060.0,0.18541608]
[1756462498378,1.33334047,110070.0,110060.0,0.18756608]
[1756462499004,1.24504415,110070.0,110060.0,0.18756608]
[1756462499196,0.03197291,110070.0,110060.0,0.18756608]
[1756462500714,0.03197291,110070.0,110060.0,0.2758624]
[1756462500715,0.02557833,110070.0,110060.0,0.2758624]
[1756462500926,0.00852611,110070.0,110060.0,0.3031844]
[1756462501133,1.03136869,110090.0,110080.0,0.18168604]
[1756462501347,0.03194032,110090.0,110080.0,0.34245604]
[1756462501551,1.24497855,110090.0,110080.0,0.34245604]
[1756462502594,1.24497855,110090.0,110080.0,0.18685604]
[1756462502848,1.24497855,110090.0,110080.0,0.18470604]
[1756462503058,0.18168604,110080.0,110070.0,0.21204455]
[1756462503295,0.03194032,110080.0,110070.0,0.21419455]
[1756462503508,1.06330901,110080.0,110070.0,0.36979455]
[1756462503694,1.03775675,110080.0,110070.0,0.36979455]
[1756462503928,1.06330397,110080.0,110070.0,0.21419455]
[1756462504131,1.06330397,110080.0,110070.0,0.36979455]
[1756462504324,1.24499001,110080.0,110070.0,0.36979455]
[1756462504740,1.06330397,110080.0,110070.0,0.36979455]
[1756462505701,1.06430397,110080.0,110070.0,0.36979455]
[1756462507191,1.06430397,110080.0,110070.0,0.36975455]
[1756462507192,1.24599001,110080.0,110070.0,0.36975455]
[1756462507399,1.24598785,110080.0,110070.0,0.36975455]
[1756462508239,1.2459847,110080.0,110070.0,0.36975455]
[1756462508448,1.06429866,110080.0,110070.0,0.36975455]
[1756462509241,1.2459847,110080.0,110070.0,0.21419455]
[1756462509633,1.2459847,110080.0,110060.0,0.19148203]
[1756462509841,0.30291233,110080.0,110070.0,0.15556]
[1756462510061,0.30291233,110080.0,110060.0,0.22182503]
[1756462510258,0.30291233,110080.0,110070.0,0.15556]
[1756462510676,0.30191233,110080.0,110070.0,0.00302]
[1756462510977,1.33427743,110080.0,110070.0,0.15858]
[1756462511344,1.33427743,110080.0,110070.0,0.34028255]
[1756462512292,1.33327743,110080.0,110070.0,0.34028255]
[1756462512494,1.24598111,110080.0,110070.0,0.34028255]
[1756462514488,1.06429507,110080.0,110070.0,0.34028255]
[1756462514707,1.06429507,110080.0,110070.0,0.34243255]
[1756462514863,1.24598111,110080.0,110070.0,0.34243255]
[1756462517274,1.06429507,110080.0,110070.0,0.34243255]
[1756462517693,1.24598111,110080.0,110070.0,0.34243255]
[1756462518164,1.24598037,110080.0,110070.0,0.34243255]
[1756462518390,1.24598037,110080.0,110070.0,0.34028255]
[1756462518634,1.24598037,110080.0,110070.0,0.33726255]
[1756462520192,1.24598037,110080.0,110070.0,0.15556]
[1756462520395,1.245979,110080.0,110070.0,0.15556]
[1756462521023,1.245979,110080.0,110070.0,0.33726255]
[1756462521648,1.33427592,110080.0,110070.0,0.15556]
[1756462521827,1.33427638,110080.0,110060.0,0.22198503]
[1756462522060,1.21307124,110070.0,110060.0,0.37746503]
[1756462522268,1.23861151,110070.0,110060.0,0.37746503]
[1756462522655,0.02554027,110070.0,110060.0,0.37746503]
[1756462522864,1.23861151,110070.0,110060.0,0.37944503]
[1756462523285,0.02554027,110070.0,110060.0,0.37944503]
[1756462523465,1.05690896,110070.0,110060.0,0.37944503]
[1756462524436,1.23861151,110070.0,110060.0,0.37944503]
[1756462524651,1.32690783,110070.0,110060.0,0.37944503]
[1756462524831,1.32690783,110070.0,110060.0,0.38044503]
[1756462525244,1.32690783,110070.0,110060.0,0.37944503]
[1756462525450,1.32690783,110070.0,110060.0,0.38044503]
[1756462525687,1.32690783,110070.0,110060.0,0.37846503]
[1756462525928,1.32690783,110070.0,110060.0,0.37944503]
[1756462526455,1.24500271,110070.0,110060.0,0.22396503]
[1756462526664,1.24500271,110070.0,110060.0,0.15615702]
[1756462527687,1.24500271,110070.0,110060.0,0.15611702]
[1756462528068,0.21363402,110070.0,110060.0,0.33783608]
[1756462528286,0.03193147,110070.0,110060.0,0.34299608]
[1756462528492,0.03193147,110070.0,110060.0,0.39822174]
[1756462528695,0.0319435,110070.0,110060.0,0.39822174]
[1756462528964,0.0319435,110070.0,110060.0,0.34299608]
[1756462531226,1.06331219,110070.0,110060.0,0.34299608]
[1756462531434,0.0319435,110070.0,110060.0,0.34299608]
[1756462532214,1.05691934,110070.0,110060.0,0.34299608]
[1756462532404,1.06333741,110070.0,110060.0,0.34299608]
[1756462532598,0.03196872,110070.0,110060.0,0.34299608]
[1756462532826,1.06333742,110070.0,110060.0,0.39822174]
[1756462533034,0.03196873,110070.0,110060.0,0.39822174]
[1756462533275,0.03196873,110070.0,110060.0,0.34299608]
[1756462535243,1.06333742,110070.0,110060.0,0.34299608]
[1756462536048,1.24504095,110070.0,110060.0,0.16127702]
[1756462536461,1.24504095,110070.0,110060.0,0.34299608]
[1756462536887,1.24504095,110070.0,110060.0,0.34295608]
[1756462537964,1.33333727,110070.0,110060.0,0.15607702]
[1756462538826,1.24504095,110070.0,110060.0,0.15607702]
[1756462539438,1.24504167,110070.0,110060.0,0.15607702]
[1756462540682,0.21367298,110070.0,110060.0,0.34097608]
[1756462540924,1.24504167,110070.0,110060.0,0.34295608]
[1756462542851,1.24504167,110070.0,110060.0,0.00067702]
[1756462543076,1.32694368,110070.0,110060.0,0.15607702]
[1756462543282,1.33333677,110070.0,110060.0,0.15607702]
[1756462543732,1.33333584,110070.0,110060.0,0.15607702]
[1756462545215,1.33333584,110070.0,110060.0,0.15925702]
[1756462545556,1.24503952,110070.0,110060.0,0.34295608]
[1756462546678,1.21307124,110070.0,110060.0,0.34295608]
[1756462546882,1.24502984,110070.0,110060.0,0.34295608]
[1756462547428,1.24502984,110070.0,110060.0,0.16123702]
[1756462547625,1.24502984,110070.0,110060.0,0.15925702]
[1756462548806,1.33332616,110070.0,110060.0,0.15925702]
[1756462549220,1.48868616,110070.0,110060.0,0.00385702]
[1756462549456,1.48868616,110070.0,110060.0,0.00067702]
[1756462549714,1.84832257,110070.0,110060.0,0.00067702]
[1756462550560,1.87565157,110070.0,110060.0,0.00067702]
[1756462553880,1.87563788,110070.0,110060.0,0.00067702]
[1756462559658,0.60061287,110070.0,110060.0,0.00575702]
[1756462559878,1.63198156,110070.0,110060.0,0.00575702]
[1756462560125,1.74033615,110070.0,110060.0,0.00575702]
[1756462560493,0.55364746,110070.0,110060.0,0.18747608]
[1756462560665,1.58501615,110070.0,110060.0,0.18747608]
[1756462560872,1.58501615,110070.0,110060.0,0.00575702]
[1756462561094,1.67331247,110070.0,110060.0,0.00575702]
[1756462561826,1.82863247,110070.0,110060.0,0.00067702]
[1756462562487,1.84825542,110070.0,110060.0,0.00377702]
[1756462563429,1.84825124,110070.0,110060.0,0.00377702]
[1756462563835,1.84825124,110070.0,110060.0,0.00575702]
[1756462565322,1.60463492,110070.0,110060.0,0.00575702]
[1756462565527,1.75995492,110070.0,110060.0,0.00575702]
[1756462567000,1.75995705,110070.0,110060.0,0.00575702]
[1756462567399,1.75991705,110070.0,110060.0,0.00575702]
[1756462567754,1.7402941,110070.0,110060.0,0.00575702]
[1756462570163,1.75993151,110070.0,110060.0,0.00575702]
[1756462573984,1.75354976,110070.0,110060.0,0.00575702]
[1756462574184,1.75996144,110070.0,110060.0,0.00575702]
[1756462574590,1.75996219,110070.0,110060.0,0.00575702]
[1756462575232,1.84825851,110070.0,110060.0,0.00575702]
[1756462575907,0.81688982,110070.0,110060.0,0.00575702]
[1756462576162,1.75996219,110070.0,110060.0,0.00575702]
[1756462576800,0.7285935,110070.0,110060.0,0.00575702]
[1756462577014,1.75996219,110070.0,110060.0,0.00575702]
[1756462578106,1.75996219,110070.0,110060.0,0.00067702]
[1756462580551,1.75996455,110070.0,110060.0,0.00067702]
[1756462580959,1.72798865,110070.0,110060.0,0.00067702]
[1756462581403,1.83974159,110070.0,110060.0,0.00067702]
[1756462581655,1.86707159,110070.0,110060.0,0.00067702]
[1756462581942,6.94861163,110070.0,110060.0,0.00067702]
[1756462582176,0.18171906,110060.0,110050.0,0.0002]
[1756462582383,6.41297957,110060.0,110050.0,0.00024769]
[1756462582632,1.52569446,110060.0,110050.0,0.00024769]
[1756462582840,1.52933846,110060.0,110050.0,0.00024769]
[1756462583419,1.50491989,110060.0,110050.0,0.00024769]
[1756462583828,1.53301507,110060.0,110050.0,0.00024769]
[1756462584050,1.57837246,110060.0,110050.0,0.00024769]
[1756462584206,2.60974115,110060.0,110050.0,0.00024769]
[1756462584413,1.65385899,110060.0,110050.0,0.00024769]
[1756462585024,1.66808308,110060.0,110050.0,0.00024769]
[1756462585225,1.66908308,110060.0,110050.0,0.00024769]
[1756462586123,1.67108308,110060.0,110050.0,0.00024769]
[1756462586513,1.66908308,110060.0,110050.0,0.00024769]
[1756462586735,1.64406867,110060.0,110050.0,0.00024769]
[1756462586935,1.64606867,110060.0,110050.0,0.00024769]
[1756462587101,6.64606867,110060.0,110050.0,0.00024769]
[1756462587307,6.67108308,110060.0,110050.0,0.00024769]
[1756462587511,6.65014426,110060.0,110050.0,0.00024769]
[1756462587710,6.67108308,110060.0,110050.0,0.00024769]
[1756462587946,6.6646672,110060.0,110050.0,0.00024769]
[1756462588158,6.67104771,110060.0,110050.0,0.00024769]
[1756462588366,8.0424164,110060.0,110050.0,0.00024769]
[1756462588571,8.0668314,110060.0,110050.0,0.00024769]
[1756462588767,7.03546271,110060.0,110050.0,0.00024769]
[1756462589228,7.03542271,110060.0,110050.0,0.00024769]
[1756462590202,8.0667914,110060.0,110050.0,0.00024769]
[1756462591284,8.04177699,110060.0,110050.0,0.00024769]
[1756462592059,0.18173557,110050.0,110040.0,0.0002]
[1756462592274,7.53954668,110050.0,110040.0,0.0002477]
[1756462592828,7.56688268,110050.0,110040.0,0.0002477]
[1756462593465,7.56788268,110050.0,110040.0,0.0002477]
[1756462594144,7.5888215,110050.0,110040.0,0.0002477]
[1756462594556,7.58364794,110050.0,110040.0,0.0002477]
[1756462594726,7.58364794,110050.0,110040.0,0.0031977]
[1756462594935,7.42844794,110050.0,110040.0,0.0051777]
[1756462595131,7.58364794,110050.0,110040.0,0.0051777]
[1756462595333,7.42844794,110050.0,110040.0,0.0031977]
[1756462595515,7.58364794,110050.0,110040.0,0.0031977]
[1756462597961,7.40881053,110050.0,110040.0,0.0031977]
[1756462598319,7.57823601,110050.0,110040.0,0.0031977]
[1756462598629,7.42303601,110050.0,110040.0,0.0031977]
[1756462598866,7.57818618,110050.0,110040.0,0.0031977]
[1756462599263,7.42298618,110050.0,110040.0,0.0031977]
[1756462599520,7.57818618,110050.0,110040.0,0.0002477]
[1756462600016,7.57814618,110050.0,110040.0,0.0002477]
[1756462600361,7.59774382,110050.0,110040.0,0.0002477]
[1756462600977,7.44258382,110050.0,110040.0,0.0002477]
[1756462601450,7.59774382,110050.0,110040.0,0.0031977]
[1756462601878,7.58351834,110050.0,110040.0,0.0031977]
[1756462602082,7.58351834,110050.0,110040.0,0.0051777]
[1756462602509,7.58351834,110050.0,110040.0,0.0031977]
[1756462603156,7.58351834,110050.0,110040.0,0.0051777]
[1756462603363,7.58351834,110050.0,110040.0,0.0031977]
[1756462603783,7.58351834,110050.0,110040.0,0.0002477]
[1756462604691,7.60853275,110050.0,110040.0,0.0002477]
[1756462604894,7.63462793,110050.0,110040.0,0.0002477]
[1756462605161,7.64885368,110050.0,110040.0,0.0002477]
[1756462606079,7.49369368,110050.0,110040.0,0.0002477]
[1756462606303,7.64885368,110050.0,110040.0,0.0031977]
[1756462606750,7.49369368,110050.0,110040.0,0.0031977]
[1756462606957,7.64885368,110050.0,110040.0,0.0031977]
[1756462607177,7.64885368,110050.0,110040.0,0.0002477]
[1756462607763,7.67327225,110050.0,110040.0,0.0002477]
[1756462608012,7.67327225,110050.0,110030.0,0.00315]
[1756462608013,2.29559906,110040.0,110030.0,0.00315]
[1756462608260,7.94630845,110040.0,110030.0,0.00024771]
[1756462608506,2.95148201,110040.0,110030.0,0.00024771]
[1756462608741,3.00323958,110040.0,110030.0,0.00024771]
[1756462609510,8.00323958,110040.0,110030.0,0.00024771]
[1756462609749,8.00330139,110040.0,110030.0,0.00224771]
[1756462610915,8.00430139,110040.0,110030.0,0.00224771]
[1756462611350,8.00430265,110040.0,110030.0,0.00224771]
[1756462611469,8.00430265,110040.0,110030.0,0.00024771]
[1756462611873,0.1817686,110030.0,110020.0,0.0002]
[1756462612071,6.50810449,110030.0,110020.0,0.0002]
[1756462612438,1.50810449,110030.0,110020.0,0.0034]
[1756462612578,1.53544449,110030.0,110020.0,0.0034]
[1756462612990,1.53544449,110030.0,110020.0,0.0054]
[1756462613446,1.53544449,110030.0,110020.0,0.00753]
[1756462614774,1.55904549,110030.0,110020.0,0.00753]
[1756462614985,1.57327291,110030.0,110020.0,0.00753]
[1756462616110,0.38678422,110030.0,110020.0,0.00753]
[1756462616315,0.4536079,110030.0,110020.0,0.00753]
[1756462616435,1.48497659,110030.0,110020.0,0.00753]
[1756462616634,1.66985659,110030.0,110020.0,0.18931512]
[1756462617755,1.82497659,110030.0,110020.0,0.00753]
[1756462618210,1.82497659,110030.0,110020.0,0.18931512]
[1756462618409,1.91327291,110030.0,110020.0,0.18931512]
[1756462618621,1.91327291,110030.0,110020.0,0.00753]
[1756462619660,1.91327291,110030.0,110020.0,0.18931512]
[1756462619860,0.7935679,110030.0,110020.0,0.18931512]
[1756462620048,1.82493659,110030.0,110020.0,0.18931512]
[1756462620253,1.80150388,110030.0,110020.0,0.18931512]
[1756462620483,1.82493932,110030.0,110020.0,0.18931512]
[1756462621092,1.82497574,110030.0,110020.0,0.18931512]
[1756462622099,0.43712439,110030.0,110020.0,0.18931512]
[1756462622308,0.61889299,110030.0,110020.0,0.18931512]
[1756462622721,1.44115308,110030.0,110020.0,0.18931512]
[1756462623122,1.62292168,110030.0,110020.0,0.18931512]
[1756462623333,1.77800168,110030.0,110020.0,0.18931512]
[1756462623887,1.866298,110030.0,110020.0,0.18931512]
[1756462624333,0.83492931,110030.0,110020.0,0.18931512]
[1756462624548,1.866298,110030.0,110020.0,0.18931512]
[1756462626547,0.83492931,110030.0,110020.0,0.18931512]
[1756462626727,1.866298,110030.0,110020.0,0.18931512]
[1756462628566,0.83492931,110030.0,110020.0,0.18931512]
[1756462628799,1.866298,110030.0,110020.0,0.18931512]
[1756462629768,1.83434203,110030.0,110020.0,0.18931512]
[1756462629986,0.40979081,110030.0,110020.0,0.18931512]
[1756462630209,0.74659941,110030.0,110020.0,0.18931512]
[1756462630452,1.77796825,110030.0,110020.0,0.18931512]
[1756462633583,1.62292825,110030.0,110020.0,0.18931512]
[1756462633936,1.77796825,110030.0,110020.0,0.18931512]
[1756462635113,1.86626457,110030.0,110020.0,0.18931512]
[1756462635789,1.86622457,110030.0,110020.0,0.18931512]
[1756462639020,1.71122457,110030.0,110020.0,0.18931512]
[1756462639261,1.86622457,110030.0,110020.0,0.0054]
[1756462640097,1.86622457,110030.0,110020.0,0.18718512]
[1756462640487,1.86622457,110030.0,110020.0,0.00737]
[1756462640665,1.86623434,110030.0,110020.0,0.0054]
[1756462641490,1.7112347,110030.0,110020.0,0.0054]
[1756462641704,1.8662347,110030.0,110020.0,0.0054]
[1756462642788,1.7112347,110030.0,110020.0,0.0054]
[1756462643012,1.77793838,110030.0,110020.0,0.18718512]
[1756462643284,1.90901774,110030.0,110020.0,0.18915512]
[1756462643772,0.74656969,110030.0,110020.0,0.18915512]
[1756462643978,1.90901774,110030.0,110020.0,0.18915512]
[1756462644193,1.90901774,110030.0,110020.0,0.00737]
[1756462644401,1.90901774,110030.0,110020.0,0.18915512]
[1756462644567,1.90901774,110030.0,110020.0,0.0022]
[1756462644776,1.99731406,110030.0,110020.0,0.0022]
[1756462645599,2.01697289,110030.0,110020.0,0.0022]
[1756462646290,3.20443535,110030.0,110020.0,0.0022]
[1756462646504,3.23177435,110030.0,110020.0,0.0022]
[1756462647140,3.23173435,110030.0,110020.0,0.0022]
[1756462647576,1.94041869,110030.0,110020.0,0.0022]
[1756462647970,1.94043737,110030.0,110020.0,0.0022]
[1756462648175,1.92620995,110030.0,110020.0,0.0022]
[1756462649237,1.90119554,110030.0,110020.0,0.0022]
[1756462649584,0.18180165,110010.0,110000.0,0.22350977]
[1756462649814,1.28373362,110010.0,110000.0,0.18909644]
[1756462650876,1.28373362,110010.0,110000.0,0.19109644]
[1756462651085,1.28373362,110010.0,110000.0,0.19509644]
[1756462651522,1.28372141,110010.0,110000.0,0.19509644]
[1756462651704,0.25014097,110010.0,110000.0,0.19509644]
[1756462651904,1.28372141,110010.0,110000.0,0.19509644]
[1756462658154,0.25014097,110010.0,110000.0,0.19509644]
[1756462658465,1.28372141,110010.0,110000.0,0.19509644]
[1756462658655,0.06833932,110010.0,110000.0,0.19509644]
[1756462658906,1.28372141,110010.0,110000.0,0.19509644]
[1756462659131,0.03197914,110010.0,110000.0,0.19509644]
[1756462659350,0.03197914,110010.0,110000.0,0.18909644]
[1756462659570,0.03197914,110010.0,110000.0,0.19009644]
[1756462659793,0.03197914,110010.0,110000.0,0.19209644]
[1756462660019,0.03197914,110010.0,110000.0,0.19109644]
[1756462660152,0.12027546,110010.0,110000.0,0.19109644]
[1756462660376,0.12027546,110010.0,110000.0,0.19009644]
[1756462660576,1.1538559,110010.0,110000.0,0.19009644]
[1756462660802,1.1538559,110010.0,110000.0,0.19209644]
[1756462661214,0.12027546,110010.0,110000.0,0.19209644]
[1756462662369,0.12025514,110010.0,110000.0,0.19209644]
[1756462662799,0.12025537,110010.0,110000.0,0.19209644]
[1756462663015,1.15383581,110010.0,110000.0,0.19209644]
[1756462665020,0.12025537,110010.0,110000.0,0.19209644]
[1756462665327,1.15383581,110010.0,110000.0,0.19209644]
[1756462668236,0.12025537,110010.0,110000.0,0.19209644]
[1756462668502,1.15383581,110010.0,110000.0,0.19209644]
[1756462669511,1.28283529,110010.0,110000.0,0.19209644]
[1756462672351,0.03196723,110010.0,110000.0,0.19209644]
[1756462672562,0.03197317,110010.0,110000.0,1.35466818]
[1756462672769,0.03197317,110010.0,110000.0,1.4703025]
[1756462672944,0.01705077,110010.0,110000.0,1.4703025]
[1756462673150,1.69810777,110030.0,110020.0,0.18178512]
[1756462673359,1.55815011,110030.0,110020.0,0.34178512]
[1756462674950,1.55915011,110030.0,110020.0,0.34178512]
[1756462675973,1.40191871,110030.0,110020.0,0.34178512]
[1756462676746,1.22015011,110030.0,110020.0,0.34178512]
[1756462676956,1.21915011,110030.0,110020.0,0.33980512]
[1756462677109,1.22015011,110030.0,110020.0,0.34178512]
[1756462677576,1.21915011,110030.0,110020.0,0.18690512]
[1756462677763,1.21815011,110030.0,110020.0,0.34174512]
[1756462677965,0.05557837,110030.0,110020.0,0.34274512]
[1756462678231,0.05657837,110030.0,110020.0,0.34274512]
[1756462678441,1.21915011,110030.0,110020.0,0.34274512]
[1756462678654,1.21815011,110030.0,110020.0,0.34274512]
[1756462679074,0.14387469,110030.0,110020.0,0.34274512]
[1756462679282,1.21815011,110030.0,110020.0,0.34274512]
[1756462680197,1.21814291,110030.0,110020.0,0.37008112]
[1756462682661,1.20321912,110030.0,110020.0,0.21524112]
[1756462682888,1.21812536,110030.0,110020.0,0.21326112]
[1756462683125,1.48819028,110030.0,110020.0,0.21012112]
[1756462683802,1.39989396,110030.0,110020.0,0.21012112]
[1756462685168,1.37292536,110030.0,110020.0,0.21326112]
[1756462685820,1.55469396,110030.0,110020.0,0.21326112]
[1756462686022,1.37292536,110030.0,110020.0,0.21524112]
[1756462686162,1.37292536,110030.0,110020.0,0.21326112]
[1756462686380,1.55469396,110030.0,110020.0,0.21326112]
[1756462686576,1.55469396,110030.0,110020.0,0.36806112]
[1756462686784,1.64299028,110030.0,110020.0,0.36492112]
[1756462686991,1.64299028,110030.0,110020.0,0.36806112]
[1756462687738,1.64298758,110030.0,110020.0,0.36806112]
[1756462688297,1.46121898,110030.0,110020.0,0.36806112]
[1756462688505,1.37292266,110030.0,110020.0,0.36806112]
[1756462688713,1.55469126,110030.0,110020.0,0.36806112]
[1756462689138,1.55469126,110030.0,110020.0,0.36492112]
[1756462689776,1.55469097,110030.0,110020.0,0.36492112]
[1756462690654,1.55469097,110030.0,110020.0,0.028336]
[1756462690808,1.98298729,110030.0,110020.0,0.001]
[1756462692504,1.98294729,110030.0,110020.0,0.18592512]
[1756462693135,1.82818729,110030.0,110020.0,0.18790512]
[1756462693340,1.97655677,110030.0,110020.0,0.18790512]
[1756462693539,1.98294531,110030.0,110020.0,0.18790512]
[1756462693740,1.82818531,110030.0,110020.0,0.18790512]
[1756462693944,1.98294531,110030.0,110020.0,0.18790512]
[1756462694184,1.98294562,110030.0,110020.0,0.18790512]
[1756462694345,1.98294562,110030.0,110020.0,0.18592512]
[1756462694821,1.98294562,110030.0,110020.0,0.18278512]
[1756462694974,1.98294562,110030.0,110020.0,0.001]
[1756462695397,2.00257908,110030.0,110020.0,0.001]
[1756462695809,1.98294562,110030.0,110020.0,0.001]
[1756462697198,1.98295086,110030.0,110020.0,0.001]
[1756462698075,1.98291086,110030.0,110020.0,0.18592512]
[1756462698289,1.98291086,110030.0,110020.0,0.18790512]
[1756462698583,1.71284594,110030.0,110020.0,0.18790512]
[1756462698803,0.3955542,110030.0,110020.0,0.18790512]
[1756462699016,1.21812594,110030.0,110020.0,0.18790512]
[1756462699230,1.39989454,110030.0,110020.0,0.18790512]
[1756462699444,0.0555542,110030.0,110020.0,0.21524212]
[1756462699651,1.08869928,110030.0,110020.0,0.21524212]
[1756462702398,1.27046788,110030.0,110020.0,0.21524212]
[1756462702608,1.27046788,110030.0,110020.0,0.18790512]
[1756462702851,1.5134842,110030.0,110020.0,0.00414]
[1756462703483,1.5134842,110030.0,110020.0,0.18592512]
[1756462703686,1.5134842,110030.0,110020.0,0.00414]
[1756462704253,1.51351514,110030.0,110020.0,0.001]
[1756462704812,1.51351555,110030.0,110020.0,0.001]
[1756462705018,1.51351555,110030.0,110020.0,0.18278512]
[1756462705425,1.51351555,110030.0,110020.0,0.18579512]
[1756462705645,1.51351555,110030.0,110020.0,0.00401]
[1756462705853,1.51351555,110030.0,110020.0,0.18579512]
[1756462706688,0.36847315,110030.0,110020.0,0.18579512]
[1756462706893,1.40157823,110030.0,110020.0,0.18579512]
[1756462707073,1.24689823,110030.0,110020.0,0.18775512]
[1756462708026,1.24689821,110030.0,110020.0,0.18775512]
[1756462708505,1.24689821,110030.0,110020.0,0.18579512]
[1756462708692,1.24689821,110030.0,110020.0,0.18775512]
[1756462709099,1.40157821,110030.0,110020.0,0.18775512]
[1756462709342,1.26772151,110030.0,110020.0,0.18775512]
[1756462709560,1.08595291,110030.0,110020.0,0.18775512]
[1756462710711,1.26772151,110030.0,110020.0,0.18775512]
[1756462711868,1.35601783,110030.0,110020.0,0.00401]
[1756462712081,1.35601783,110030.0,110020.0,0.18278512]
[1756462712310,1.51069783,110030.0,110020.0,0.18278512]
[1756462712501,1.42240151,110030.0,110020.0,0.18278512]
[1756462712706,1.42236151,110030.0,110020.0,0.18278512]
[1756462713076,1.42236151,110030.0,110020.0,0.18579512]
[1756462713774,1.26772151,110030.0,110020.0,0.18579512]
[1756462713941,1.42236151,110030.0,110020.0,0.18775512]
[1756462714368,1.26772151,110030.0,110020.0,0.18775512]
[1756462714575,1.42236151,110030.0,110020.0,0.18775512]
[1756462715182,1.42236332,110030.0,110020.0,0.18775512]